fUSD/lending_fUSD_20251204
["ID","MTS","AMOUNT","RATE_DAILY","PERIOD"]
[396212412,1764811840861,-500.0,0.00016999,2]
[396212413,1764811840871,-500.0,0.00016999,2]
[396212414,1764811840880,-500.0,0.00016999,2]
[396212415,1764811840890,-500.0,0.00016999,2]
[396212416,1764811840899,-500.0,0.00016999,2]
[396212417,1764811840908,-500.0,0.00016999,2]
[396212418,1764811840918,-500.0,0.00016999,2]
[396212419,1764811840928,-500.0,0.00016999,2]
[396212420,1764811840938,-500.0,0.00016999,2]
[396212421,1764811840949,-500.0,0.00016999,2]
[396212422,1764811840962,-500.0,0.00016999,2]
[396212423,1764811840972,-500.0,0.00016999,2]
[396212424,1764811840981,-500.0,0.00016999,2]
[396212425,1764811840990,-500.0,0.00016999,2]
[396212426,1764811841000,-500.0,0.00016999,2]
[396212427,1764811841010,-500.0,0.00016999,2]
[396212428,1764811841019,-500.0,0.00016999,2]
[396212429,1764811841028,-500.0,0.00016999,2]
[396212430,1764811841037,-500.0,0.00016999,2]
[396212431,1764811841046,-500.0,0.00016999,2]
[396212432,1764811841055,-3259685.06451068,0.00017,2]
[396212477,1764811845380,-965.42,0.00016616,2]
[396212478,1764811845391,-2860.39612713,0.00016616,2]
[396212479,1764811845516,-2141.0247425,0.00016616,2]
[396212480,1764811845525,-40350.42744768,0.00017,2]
[396212481,1764811845558,-405.2589449,0.00017,2]
[396212482,1764811845571,-310.546,0.00017,2]
[396212483,1764811845598,-11944.53909699,0.00017,2]
[396212484,1764811845612,-52526.57025591,0.00017,2]
[396212485,1764811845639,-2898.13085106,0.00017,2]
[396212486,1764811845676,-184686.32952418,0.00017,2]
[396212501,1764812295759,-500.01807237,0.00013699,2]
[396212504,1764812505753,-0.08192763,0.00013699,2]
[396212505,1764812505780,-263.0,0.00013699,2]
[396212506,1764812505801,-179.67094634,0.00013699,2]
[396212507,1764812505823,-57.24712603,0.00013699,2]
[396212508,1764812508954,-178.50051504,0.00013699,2]
[396212519,1764813031563,-734.40908078,0.00013699,2]
[396212520,1764813031617,-207.45627815,0.00013699,2]
[396212521,1764813031626,-263.0,0.00013699,2]
[396212522,1764813031635,-166.66,0.00014461,2]
[396212523,1764813031644,-166.66,0.00014766,2]
[396212524,1764813031653,-179.48181551,0.0001497,2]
[396212525,1764813031662,-209.35826814,0.00015069,2]
[396212526,1764813031671,-166.66,0.0001507,2]
[396212527,1764813031680,-166.66,0.00015374,2]
[396212528,1764813031689,-4052.18,0.00015567,2]
[396212529,1764813031698,-1200.0,0.00015678,2]
[396212530,1764813031706,-166.66,0.00015679,2]
[396212531,1764813031715,-166.66,0.00015735,2]
[396212532,1764813031724,-300.0,0.00015872,2]
[396212533,1764813031733,-506.68533505,0.00015873,2]
[396212534,1764813031751,-502.59707266,0.00015873,2]
[396212535,1764813031760,-502.49862573,0.00015873,2]
[396212536,1764813031769,-150.0,0.00015891,2]
[396212537,1764813031779,-166.66,0.00015983,2]
[396212538,1764813031789,-4627.44153984,0.00016,2]
[396212539,1764813031803,-434.21552997,0.00016,2]
[396212540,1764813031819,-1618.14212,0.00016,2]
[396212541,1764813031830,-6943.92151329,0.00016,2]
[396212542,1764813031841,-1518.58334676,0.00016,2]
[396212552,1764813037937,-4953.30424378,0.00016,2]
[396212553,1764813037949,-3233.44485476,0.00016,2]
[396212590,1764813039691,-165.2082797,0.00016,2]
[396212591,1764813039718,-1625.6919055,0.00016,2]
[396212592,1764813040074,-1000.0,0.00016,2]
[396212593,1764813040085,-637.23775054,0.00016,2]
[396212594,1764813040095,-54445.42261586,0.00016,2]
[396212595,1764813040104,-1814.4892,0.00016,2]
[396212596,1764813040113,-3843.48243318,0.00016014,2]
[396212597,1764813040122,-5204.87234517,0.00016016,2]
[396212598,1764813040131,-258.0,0.00016089,2]
[396212599,1764813040140,-1523.6,0.0001609,2]
[396212600,1764813040149,-500.0,0.0001609,2]
[396212601,1764813040158,-500.0,0.0001609,2]
[396212602,1764813040167,-500.0,0.0001609,2]
[396212603,1764813040177,-500.0,0.0001609,2]
[396212604,1764813040187,-500.0,0.0001609,2]
[396212605,1764813040197,-500.0,0.0001609,2]
[396212606,1764813040206,-500.0,0.0001609,2]
[396212607,1764813040215,-500.0,0.0001609,2]
[396212608,1764813040225,-500.0,0.0001609,2]
[396212609,1764813040234,-500.0,0.0001609,2]
[396212610,1764813040243,-500.0,0.0001609,2]
[396212611,1764813040253,-500.0,0.0001609,2]
[396212612,1764813040262,-509.51129037,0.0001609,2]
[396212613,1764813040271,-151.0,0.0001609,2]
[396212614,1764813040281,-151.0,0.0001609,2]
[396212615,1764813040291,-151.0,0.0001609,2]
[396212616,1764813040301,-151.0,0.0001609,2]
[396212617,1764813040310,-151.0,0.0001609,2]
[396212618,1764813040319,-151.0,0.0001609,2]
[396212619,1764813040330,-151.0,0.0001609,2]
[396212620,1764813040339,-151.0,0.0001609,2]
[396212621,1764813040348,-151.0,0.0001609,2]
[396212622,1764813040357,-151.0,0.0001609,2]
[396212623,1764813040366,-151.0,0.0001609,2]
[396212624,1764813040376,-151.0,0.0001609,2]
[396212625,1764813040385,-1003.5506884,0.00016098,2]
[396212626,1764813040394,-611.75031463,0.00016099,2]
[396212627,1764813040404,-500.0,0.00016099,2]
[396212628,1764813040414,-500.0,0.00016099,2]
[396212629,1764813040424,-500.0,0.00016099,2]
[396212630,1764813040433,-500.0,0.00016099,2]
[396212631,1764813040443,-521.60476849,0.00016099,2]
[396212632,1764813040453,-506.71814393,0.00016099,2]
[396212633,1764813040462,-500.0,0.00016099,2]
[396212634,1764813040472,-500.0,0.00016099,2]
[396212635,1764813040481,-506.84102606,0.00016099,2]
[396212636,1764813040490,-468.9517815,0.00016099,2]
[396212637,1764813040499,-150.0,0.00016099,2]
[396212638,1764813040508,-500.0,0.00016099,2]
[396212639,1764813040518,-3774.0,0.00016099,2]
[396212640,1764813040527,-150.0,0.00016099,2]
[396212641,1764813040536,-150.0,0.00016099,2]
[396212642,1764813040545,-152.33281575,0.00016099,2]
[396212643,1764813040556,-150.0,0.00016099,2]
[396212644,1764813040565,-150.0,0.00016099,2]
[396212645,1764813040574,-500.0,0.00016099,2]
[396212646,1764813040584,-500.0,0.00016099,2]
[396212647,1764813040593,-150.0,0.00016099,2]
[396212648,1764813040603,-202.19752299,0.00016099,2]
[396212649,1764813040612,-500.0,0.00016099,2]
[396212650,1764813040622,-150.0,0.00016099,2]
[396212651,1764813040632,-203.89538956,0.00016099,2]
[396212652,1764813040641,-500.0,0.00016099,2]
[396212653,1764813040652,-150.0,0.00016099,2]
[396212654,1764813040661,-501.40521369,0.00016099,2]
[396212655,1764813040671,-624.91241,0.00016099,2]
[396212656,1764813040681,-623.50617463,0.00016099,2]
[396212657,1764813040690,-175.38899922,0.00016099,2]
[396212658,1764813040699,-500.0,0.00016099,2]
[396212659,1764813040708,-500.0,0.00016099,2]
[396212660,1764813040719,-500.0,0.00016099,2]
[396212661,1764813040728,-500.0,0.00016099,2]
[396212662,1764813040738,-500.0,0.00016099,2]
[396212663,1764813040748,-500.0,0.00016099,2]
[396212664,1764813040757,-500.0,0.00016099,2]
[396212665,1764813040766,-500.0,0.00016099,2]
[396212666,1764813040775,-620.07447464,0.00016099,2]
[396212667,1764813040789,-500.0,0.00016099,2]
[396212668,1764813040798,-500.0,0.00016099,2]
[396212669,1764813040807,-500.0,0.00016099,2]
[396212670,1764813040816,-500.0,0.00016099,2]
[396212671,1764813040826,-500.0,0.00016099,2]
[396212672,1764813040835,-500.0,0.00016099,2]
[396212673,1764813040845,-500.0,0.00016099,2]
[396212674,1764813040855,-500.0,0.00016099,2]
[396212675,1764813040865,-500.0,0.00016099,2]
[396212676,1764813040874,-500.0,0.00016099,2]
[396212677,1764813040883,-500.0,0.00016099,2]
[396212678,1764813040891,-500.0,0.00016099,2]
[396212679,1764813040901,-500.0,0.00016099,2]
[396212680,1764813040910,-500.0,0.00016099,2]
[396212681,1764813040919,-500.0,0.00016099,2]
[396212682,1764813040928,-500.0,0.00016099,2]
[396212683,1764813040937,-500.0,0.00016099,2]
[396212684,1764813040946,-500.0,0.00016099,2]
[396212685,1764813040955,-500.0,0.00016099,2]
[396212686,1764813040964,-362.00744746,0.00016099,2]
[396212687,1764813040973,-500.0,0.00016099,2]
[396212688,1764813040982,-500.0,0.00016099,2]
[396212689,1764813040992,-500.0,0.00016099,2]
[396212690,1764813041001,-500.0,0.00016099,2]
[396212691,1764813041010,-500.0,0.00016099,2]
[396212692,1764813041019,-500.0,0.00016099,2]
[396212693,1764813041028,-500.0,0.00016099,2]
[396212694,1764813041037,-500.0,0.00016099,2]
[396212695,1764813041047,-500.0,0.00016099,2]
[396212696,1764813041056,-500.0,0.00016099,2]
[396212697,1764813041066,-500.0,0.00016099,2]
[396212698,1764813041074,-500.0,0.00016099,2]
[396212699,1764813041083,-500.0,0.00016099,2]
[396212700,1764813041092,-500.0,0.00016099,2]
[396212701,1764813041101,-500.0,0.00016099,2]
[396212702,1764813041111,-500.0,0.00016099,2]
[396212703,1764813041120,-500.0,0.00016099,2]
[396212704,1764813041129,-500.0,0.00016099,2]
[396212705,1764813041138,-500.0,0.00016099,2]
[396212706,1764813041147,-500.0,0.00016099,2]
[396212707,1764813041156,-500.0,0.00016099,2]
[396212708,1764813041165,-500.0,0.00016099,2]
[396212709,1764813041174,-500.0,0.00016099,2]
[396212710,1764813041183,-3843.48243317,0.00016112,2]
[396212711,1764813041192,-5204.87234511,0.00016114,2]
[396212712,1764813041202,-9999.99,0.00016116,2]
[396212713,1764813041211,-250.0,0.00016131,2]
[396212714,1764813041220,-3843.48243317,0.00016211,2]
[396212715,1764813041229,-5204.87234511,0.00016212,2]
[396212716,1764813041239,-150.0,0.00016236,2]
[396212717,1764813041248,-541.50339191,0.00016236,2]
[396212718,1764813041257,-3774.0,0.00016236,2]
[396212719,1764813041266,-202.87440069,0.00016236,2]
[396212720,1764813041275,-150.0,0.00016236,2]
[396212721,1764813041284,-150.0,0.00016236,2]
[396212722,1764813041294,-150.0,0.00016236,2]
[396212723,1764813041303,-500.0,0.00016236,2]
[396212724,1764813041312,-500.0,0.00016236,2]
[396212725,1764813041321,-500.0,0.00016236,2]
[396212726,1764813041329,-500.0,0.00016236,2]
[396212727,1764813041339,-150.0,0.00016236,2]
[396212728,1764813041347,-166.66,0.00016254,2]
[396212729,1764813041356,-3843.48243317,0.00016309,2]
[396212730,1764813041366,-5204.87234511,0.00016311,2]
[396212731,1764813041375,-1000.0,0.00016311,2]
[396212732,1764813041385,-1523.6,0.00016364,2]
[396212733,1764813041394,-208.45126976,0.00016373,2]
[396212734,1764813041403,-3774.0,0.00016373,2]
[396212735,1764813041412,-150.0,0.00016373,2]
[396212737,1764813041421,-204.00637906,0.00016373,2]
[396212739,1764813041430,-256.59661348,0.00016373,2]
[396212741,1764813041439,-500.0,0.00016373,2]
[396212743,1764813041448,-500.0,0.00016373,2]
[396212744,1764813041458,-500.0,0.00016373,2]
[396212745,1764813041467,-500.0,0.00016373,2]
[396212746,1764813041476,-150.0,0.00016373,2]
[396212747,1764813041485,-3843.48243317,0.00016408,2]
[396212748,1764813041494,-5204.87234511,0.00016409,2]
[396212749,1764813041503,-500.0,0.0001641,2]
[396212750,1764813041512,-508.04937592,0.0001641,2]
[396212751,1764813041522,-500.0,0.00016438,2]
[396212752,1764813041530,-518.5,0.00016438,2]
[396212753,1764813041540,-621.64,0.00016441,2]
[396212754,1764813041549,-537.6845,0.00016493,2]
[396212755,1764813041558,-3843.48243317,0.00016506,2]
[396212756,1764813041567,-5204.87234511,0.00016507,2]
[396212757,1764813041576,-3774.0,0.0001651,2]
[396212758,1764813041585,-150.0,0.0001651,2]
[396212759,1764813041595,-500.0,0.0001651,2]
[396212760,1764813041605,-500.0,0.0001651,2]
[396212761,1764813041614,-607.5468066,0.0001651,2]
[396212762,1764813041623,-578.94802614,0.0001651,2]
[396212763,1764813041633,-150.0,0.0001651,2]
[396212764,1764813041643,-557.5788265,0.00016548,2]
[396212765,1764813041652,-500.0,0.00016575,2]
[396212766,1764813041661,-578.20924308,0.00016603,2]
[396212767,1764813041671,-3843.48243317,0.00016605,2]
[396212768,1764813041680,-5204.87234511,0.00016605,2]
[396212769,1764813041690,-1523.6,0.00016638,2]
[396212770,1764813041699,-3774.0,0.00016647,2]
[396212771,1764813041708,-152.02518252,0.00016647,2]
[396212772,1764813041718,-500.0,0.00016647,2]
[396212773,1764813041727,-160.30255927,0.00016647,2]
[396212774,1764813041737,-150.0,0.00016647,2]
[396212775,1764813041746,-381.6796646,0.00016658,2]
[396212776,1764813041755,-3843.48243317,0.00016703,2]
[396212777,1764813041764,-5204.87234511,0.00016704,2]
[396212778,1764813041774,-634.68642272,0.00016712,2]
[396212779,1764813041974,-166.66,0.00016774,2]
[396212780,1764813041984,-3774.0,0.00016784,2]
[396212781,1764813041994,-366.23798276,0.00016784,2]
[396212782,1764813042004,-201.44591919,0.00016784,2]
[396212783,1764813042014,-1002.86,0.000168,2]
[396212784,1764813042023,-3843.48243317,0.00016802,2]
[396212785,1764813042033,-5204.87234511,0.00016802,2]
[396212786,1764813042042,-389.49227043,0.00016822,2]
[396212787,1764813042052,-196.06245681,0.000169,2]
[396212788,1764813042061,-5204.87234511,0.000169,2]
[396212789,1764813042071,-3843.48243317,0.000169,2]
[396212790,1764813042080,-180.97491933,0.000169,2]
[396212791,1764813042089,-307.33468728,0.000169,2]
[396212792,1764813042098,-1523.6,0.00016912,2]
[396212793,1764813042107,-3774.0,0.00016921,2]
[396212794,1764813042117,-104772.63,0.00016922,2]
[396212795,1764813042126,-999.99,0.00016922,2]
[396212796,1764813042135,-436.48,0.00016922,2]
[396212797,1764813042144,-9620.29,0.00016922,2]
[396212798,1764813042154,-22843.75,0.00016922,2]
[396212799,1764813042163,-500.0,0.00016973,2]
[396212800,1764813042172,-500.0,0.00016973,2]
[396212801,1764813042181,-164.71510757,0.00016973,2]
[396212802,1764813042190,-500.0,0.00016973,2]
[396212803,1764813042199,-500.0,0.00016973,2]
[396212804,1764813042208,-285.16846141,0.00016973,2]
[396212805,1764813042218,-500.0,0.00016973,2]
[396212806,1764813042227,-649.32363297,0.00016973,2]
[396212807,1764813042236,-500.0,0.00016973,2]
[396212808,1764813042244,-160.37135465,0.00016997,2]
[396212809,1764813042253,-500.0,0.00016997,2]
[396212810,1764813042262,-292.6294009,0.00016997,2]
[396212811,1764813042271,-286.56625261,0.00016997,2]
[396212812,1764813042281,-277457.0748477,0.00016998,2]
[396212813,1764813042290,-3561.6523178,0.00016998,2]
[396212814,1764813042299,-715.185819,0.00016999,2]
[396212815,1764813042308,-507.17450848,0.00016999,2]
[396212816,1764813042317,-500.0,0.00016999,2]
[396212817,1764813042327,-506.24410093,0.00016999,2]
[396212818,1764813042336,-500.0,0.00016999,2]
[396212819,1764813042348,-511.74912043,0.00016999,2]
[396212820,1764813042358,-150.0,0.00016999,2]
[396212821,1764813042367,-150.0,0.00016999,2]
[396212822,1764813042377,-150.0,0.00016999,2]
[396212824,1764813042387,-282.96061831,0.00016999,2]
[396212826,1764813042396,-150.0,0.00016999,2]
[396212827,1764813042406,-150.0,0.00016999,2]
[396212828,1764813042416,-150.0,0.00016999,2]
[396212829,1764813042425,-500.0,0.00016999,2]
[396212830,1764813042435,-501.89145064,0.00016999,2]
[396212831,1764813042444,-500.0,0.00016999,2]
[396212832,1764813042454,-500.0,0.00016999,2]
[396212833,1764813042463,-510.4847934,0.00016999,2]
[396212834,1764813042474,-500.0,0.00016999,2]
[396212835,1764813042483,-565.89747264,0.00016999,2]
[396212836,1764813042492,-500.0,0.00016999,2]
[396212837,1764813042501,-500.0,0.00016999,2]
[396212838,1764813042511,-500.0,0.00016999,2]
[396212839,1764813042520,-500.0,0.00016999,2]
[396212840,1764813042530,-500.0,0.00016999,2]
[396212841,1764813042539,-500.0,0.00016999,2]
[396212842,1764813042548,-501.84138354,0.00016999,2]
[396212843,1764813042558,-946774.65546772,0.00017,2]
[396212844,1764813042567,-1752961.26285395,0.00017,2]
[396212845,1764813042591,-128946.17181349,0.00017,2]
[396212852,1764813045649,-356.38636784,0.000169,2]
[396212853,1764813045659,-305.23665087,0.000169,2]
[396212854,1764813045668,-8041.99106842,0.00017,2]
[396212855,1764813045867,-888.63963718,0.00017,2]
[396212856,1764813045916,-598.44994,0.00017,2]
[396212857,1764813045927,-1074.43970788,0.00017,2]
[396212858,1764813045970,-308.52858885,0.00017,2]
[396212868,1764813449421,24505.20352491,0.00025,120]
[396212869,1764813467578,321.94676255,0.00025,120]
[396212885,1764814232035,-225.9,0.00015352,2]
[396212886,1764814232046,-278.0,0.00015352,2]
[396212887,1764814232056,-177.36,0.00015582,2]
[396212889,1764814232066,-23.630961,0.00015582,2]
[396212892,1764814232077,-293.801,0.00015582,2]
[396212894,1764814232088,-858.178039,0.00015582,2]
[396212895,1764814232098,-1962.56,0.00015625,2]
[396212896,1764814232108,-200.0,0.00015686,2]
[396212897,1764814232117,-1200.0,0.00015798,2]
[396212898,1764814232127,-487.01501191,0.00015799,2]
[396212899,1764814232137,-4945.30306304,0.000158,2]
[396212900,1764814232148,-15888.56959284,0.000158,2]
[396212901,1764814232198,-259.11,0.000158,2]
[396212902,1764814232216,-593.68559843,0.000158,2]
[396212903,1764814232232,-4210.3142454,0.000158,2]
[396212904,1764814232245,-467.45030931,0.000158,2]
[396212916,1764814237851,-347.70504246,0.00015799,2]
[396212917,1764814237862,-152.29495754,0.00015799,2]
[396212918,1764814237871,-500.0,0.00015799,2]
[396212919,1764814237880,-86.36319024,0.00015799,2]
[396212920,1764814237956,-415.04202345,0.00015799,2]
[396212921,1764814237969,-624.91241,0.00015799,2]
[396212922,1764814237983,-500.0,0.00015799,2]
[396212923,1764814237992,-175.38899922,0.00015799,2]
[396212929,1764814238226,-500.0,0.00015799,2]
[396212931,1764814238239,-623.50617463,0.00015799,2]
[396212933,1764814238249,-500.0,0.00015799,2]
[396212935,1764814238260,-500.0,0.00015799,2]
[396212937,1764814238270,-500.0,0.00015799,2]
[396212939,1764814238281,-500.0,0.00015799,2]
[396212941,1764814238293,-500.0,0.00015799,2]
[396212943,1764814238305,-500.0,0.00015799,2]
[396212945,1764814238315,-500.0,0.00015799,2]
[396212947,1764814238325,-500.0,0.00015799,2]
[396212949,1764814238335,-500.0,0.00015799,2]
[396212950,1764814238345,-500.0,0.00015799,2]
[396212951,1764814238355,-500.0,0.00015799,2]
[396212953,1764814238364,-500.0,0.00015799,2]
[396212954,1764814238374,-500.0,0.00015799,2]
[396212955,1764814238383,-500.0,0.00015799,2]
[396212958,1764814238393,-500.0,0.00015799,2]
[396212959,1764814238402,-52.12656511,0.00015799,2]
[396212962,1764814238413,-447.87343489,0.00015799,2]
[396212963,1764814238423,-500.0,0.00015799,2]
[396212965,1764814238433,-500.0,0.00015799,2]
[396212967,1764814238442,-500.0,0.00015799,2]
[396212969,1764814238452,-500.0,0.00015799,2]
[396212970,1764814238461,-500.0,0.00015799,2]
[396212971,1764814238471,-500.0,0.00015799,2]
[396212972,1764814238482,-500.0,0.00015799,2]
[396212973,1764814238492,-500.0,0.00015799,2]
[396212974,1764814238501,-500.0,0.00015799,2]
[396212975,1764814238513,-500.0,0.00015799,2]
[396212976,1764814238524,-500.0,0.00015799,2]
[396212977,1764814238534,-500.0,0.00015799,2]
[396212978,1764814238544,-500.0,0.00015799,2]
[396212979,1764814238556,-500.0,0.00015799,2]
[396212980,1764814238565,-500.0,0.00015799,2]
[396212981,1764814238575,-19.85127005,0.00015799,2]
[396212982,1764814238587,-480.14872995,0.00015799,2]
[396212983,1764814238597,-500.0,0.00015799,2]
[396212984,1764814238608,-220.07447464,0.00015799,2]
[396212985,1764814238618,-521.12945881,0.00015799,2]
[396212986,1764814238627,-500.0,0.00015799,2]
[396212987,1764814238637,-500.0,0.00015799,2]
[396212988,1764814238646,-8730.93520786,0.000158,2]
[396212989,1764814239855,-1372.94995013,0.000158,2]
[396212990,1764814239866,-324.4526,0.000158,2]
[396212991,1764814239876,-9240.19879053,0.000158,2]
[396212992,1764814239953,-647.45983143,0.000158,2]
[396212993,1764814239965,-895.93943975,0.000158,2]
[396212994,1764814239980,-769.255992,0.000158,2]
[396212995,1764814240007,-1674.38258997,0.000158,2]
[396212996,1764814240019,-4222.23633787,0.000158,2]
[396212997,1764814240064,-206469.13681448,0.000158,2]
[396212998,1764814240074,-1814.4892,0.000158,2]
[396212999,1764814240084,-500.0,0.00015873,2]
[396213000,1764814240093,-500.0,0.00015873,2]
[396213001,1764814240103,-500.0,0.00015873,2]
[396213002,1764814240113,-300.0,0.00015889,2]
[396213004,1764814240121,-151.0,0.0001589,2]
[396213005,1764814240131,-151.0,0.0001589,2]
[396213006,1764814240139,-151.0,0.0001589,2]
[396213007,1764814240148,-151.0,0.0001589,2]
[396213008,1764814240158,-151.0,0.0001589,2]
[396213009,1764814240167,-151.0,0.0001589,2]
[396213010,1764814240179,-151.0,0.0001589,2]
[396213011,1764814240188,-151.0,0.0001589,2]
[396213012,1764814240197,-151.0,0.0001589,2]
[396213013,1764814240207,-151.0,0.0001589,2]
[396213014,1764814240217,-151.0,0.0001589,2]
[396213015,1764814240226,-500.0,0.0001589,2]
[396213016,1764814240236,-500.0,0.0001589,2]
[396213017,1764814240245,-500.0,0.0001589,2]
[396213018,1764814240257,-500.0,0.0001589,2]
[396213019,1764814240267,-500.0,0.0001589,2]
[396213020,1764814240277,-500.0,0.0001589,2]
[396213021,1764814240287,-500.0,0.0001589,2]
[396213022,1764814240296,-500.0,0.0001589,2]
[396213023,1764814240307,-500.0,0.0001589,2]
[396213024,1764814240316,-500.0,0.0001589,2]
[396213025,1764814240326,-500.0,0.0001589,2]
[396213026,1764814240335,-1003.5506884,0.00015898,2]
[396213027,1764814240345,-506.71814393,0.00015899,2]
[396213028,1764814240355,-611.75031463,0.00015899,2]
[396213029,1764814240364,-500.0,0.00015899,2]
[396213030,1764814240374,-500.0,0.00015899,2]
[396213031,1764814240383,-506.84102606,0.00015899,2]
[396213032,1764814240392,-500.0,0.00015899,2]
[396213033,1764814240403,-500.0,0.00015899,2]
[396213034,1764814240411,-500.0,0.00015899,2]
[396213035,1764814240420,-468.9517815,0.00015899,2]
[396213036,1764814240430,-500.0,0.00015899,2]
[396213037,1764814240439,-521.60476849,0.00015899,2]
[396213038,1764814240448,-1523.6,0.00015899,2]
[396213039,1764814240457,-150.0,0.00015899,2]
[396213040,1764814240467,-500.0,0.00015899,2]
[396213041,1764814240476,-3774.0,0.00015899,2]
[396213042,1764814240486,-150.0,0.00015899,2]
[396213043,1764814240495,-507.17450848,0.00015899,2]
[396213044,1764814240504,-500.0,0.00015899,2]
[396213045,1764814240514,-500.0,0.00015899,2]
[396213046,1764814240523,-508.04937592,0.00015899,2]
[396213047,1764814240532,-500.0,0.00015899,2]
[396213048,1764814240542,-506.24410093,0.00015899,2]
[396213049,1764814240551,-150.0,0.00015899,2]
[396213050,1764814240560,-500.0,0.00015899,2]
[396213051,1764814240570,-150.0,0.00015899,2]
[396213052,1764814240580,-202.19752299,0.00015899,2]
[396213053,1764814240593,-500.0,0.00015899,2]
[396213054,1764814240602,-150.0,0.00015899,2]
[396213055,1764814240612,-203.89538956,0.00015899,2]
[396213056,1764814240622,-500.0,0.00015899,2]
[396213057,1764814240632,-150.0,0.00015899,2]
[396213058,1764814240643,-500.0,0.00015899,2]
[396213059,1764814240653,-511.74912043,0.00015899,2]
[396213060,1764814240669,-500.0,0.00015899,2]
[396213061,1764814240680,-150.0,0.00015899,2]
[396213062,1764814240691,-150.0,0.00015899,2]
[396213063,1764814240701,-282.96061831,0.00015899,2]
[396213064,1764814240711,-150.0,0.00015899,2]
[396213065,1764814240721,-150.0,0.00015899,2]
[396213066,1764814240731,-500.0,0.00015899,2]
[396213067,1764814240740,-501.89145064,0.00015899,2]
[396213068,1764814240749,-152.33281575,0.00015899,2]
[396213069,1764814240759,-150.0,0.00015899,2]
[396213070,1764814240768,-9999.99,0.000159,2]
[396213071,1764814240777,-999.99,0.00016036,2]
[396213072,1764814240787,-1638.44,0.00016036,2]
[396213073,1764814240799,-22843.75,0.00016036,2]
[396213074,1764814240812,-436.48,0.00016036,2]
[396213075,1764814240821,-9999.99,0.00016036,2]
[396213076,1764814240834,-150.0,0.00016036,2]
[396213077,1764814240843,-541.50339191,0.00016036,2]
[396213078,1764814240856,-3774.0,0.00016036,2]
[396213079,1764814240867,-150.0,0.00016036,2]
[396213080,1764814240876,-500.0,0.00016036,2]
[396213081,1764814240886,-150.0,0.00016036,2]
[396213082,1764814240895,-500.0,0.00016036,2]
[396213083,1764814240904,-500.0,0.00016036,2]
[396213084,1764814240913,-500.0,0.00016036,2]
[396213085,1764814240923,-150.0,0.00016036,2]
[396213086,1764814240932,-500.0,0.00016036,2]
[396213087,1764814240941,-202.5070146,0.00016036,2]
[396213088,1764814240950,-202.87440069,0.00016036,2]
[396213089,1764814240960,-150.0,0.00016036,2]
[396213090,1764814240969,-150.0,0.00016036,2]
[396213091,1764814240979,-150.0,0.00016036,2]
[396213092,1764814240988,-13011.16,0.00016039,2]
[396213093,1764814240998,-999.0,0.00016039,3]
[396213094,1764814241009,-500.0,0.00016039,2]
[396213095,1764814241024,-500.0,0.00016099,2]
[396213096,1764814241033,-590.01321151,0.00016099,2]
[396213097,1764814241042,-500.0,0.00016099,2]
[396213098,1764814241051,-565.89747264,0.00016099,2]
[396213099,1764814241061,-500.0,0.00016099,2]
[396213100,1764814241070,-500.0,0.00016099,2]
[396213101,1764814241080,-500.0,0.00016099,2]